[Event "*** Titled Tuesday Blitz"]
[Site "Chess.com"]
[Date "2019.11.05"]
[Round "7"]
[White "Siemba"]
[Black "Svet99"]
[Result "1-0"]
[WhiteElo "2216"]
[BlackElo "2141"]
[TimeControl "180+2"]
[EndTime "14:34:38 PST"]
[Termination "Siemba won by resignation"]

1. e4 {[%clk 0:03:01.9]} 1... c6 {[%clk 0:02:57.8]} 2. d4 {[%clk 0:02:55.7]}
2... d5 {[%clk 0:02:58.7]} 3. Nd2 {[%clk 0:02:47.6]} 3... dxe4 {[%clk
0:02:59.2]} 4. Nxe4 {[%clk 0:02:49.5]} 4... Bf5 {[%clk 0:02:58.9]} 5. Ng3 {[%clk
0:02:45.4]} 5... Bg6 {[%clk 0:02:59.3]} 6. h4 {[%clk 0:02:46.2]} 6... h6 {[%clk
0:02:59.1]} 7. Nf3 {[%clk 0:02:46.6]} 7... Nd7 {[%clk 0:02:56.3]} 8. h5 {[%clk
0:02:45.2]} 8... Bh7 {[%clk 0:02:56.5]} 9. Bd3 {[%clk 0:02:36.2]} 9... Bxd3
{[%clk 0:02:56]} 10. Qxd3 {[%clk 0:02:38.1]} 10... Ngf6 {[%clk 0:02:56.9]} 11.
Bd2 {[%clk 0:02:37.7]} 11... e6 {[%clk 0:02:58.1]} 12. O-O-O {[%clk 0:02:31.2]}
12... Be7 {[%clk 0:02:58.3]} 13. Kb1 {[%clk 0:02:17.8]} 13... O-O {[%clk
0:02:46.7]} 14. Ne4 {[%clk 0:02:08.8]} 14... Nxe4 {[%clk 0:02:45.8]} 15. Qxe4
{[%clk 0:02:10.7]} 15... Nf6 {[%clk 0:02:46.7]} 16. Qe2 {[%clk 0:02:09.8]} 16...
Qd5 {[%clk 0:02:47.4]} 17. Be3 {[%clk 0:02:09.9]} 17... b5 {[%clk 0:02:41.9]}
18. g4 {[%clk 0:01:40.9]} 18... Nxg4 {[%clk 0:02:40.7]} 19. Rdg1 {[%clk
0:01:31.8]} 19... f5 {[%clk 0:02:35.4]} 20. Bd2 {[%clk 0:01:28.2]} 20... Bf6
{[%clk 0:02:32.3]} 21. Nh4 {[%clk 0:01:10.9]} 21... Qxd4 {[%clk 0:02:21.2]} 22.
Qxe6+ {[%clk 0:01:03.2]} 22... Rf7 {[%clk 0:02:22.3]} 23. Bc3 {[%clk 0:01:02.6]}
23... Qd8 {[%clk 0:01:59.1]} 24. Nxf5 {[%clk 0:00:59.7]} 24... Bxc3 {[%clk
0:01:43.3]} 25. Rxg4 {[%clk 0:00:56.7]} 1-0

[Event "*** Titled Tuesday Blitz"]
[Site "Chess.com"]
[Date "2019.11.05"]
[Round "7"]
[White "LawrenceTrent"]
[Black "ehrenfeld"]
[Result "0-1"]
[WhiteElo "2681"]
[BlackElo "2541"]
[TimeControl "180+2"]
[EndTime "14:35:00 PST"]
[Termination "ehrenfeld won by resignation"]

1. d4 {[%clk 0:02:58.2]} 1... Nf6 {[%clk 0:03:00.3]} 2. Bg5 {[%clk 0:02:58.8]}
2... e6 {[%clk 0:02:51.5]} 3. e4 {[%clk 0:02:59.4]} 3... h6 {[%clk 0:02:52.3]}
4. Bxf6 {[%clk 0:03:00.2]} 4... Qxf6 {[%clk 0:02:53.3]} 5. c3 {[%clk 0:03:01.2]}
5... d6 {[%clk 0:02:54.3]} 6. Nd2 {[%clk 0:03:01.3]} 6... Nd7 {[%clk 0:02:52.9]}
7. Bd3 {[%clk 0:03:01.6]} 7... e5 {[%clk 0:02:52.4]} 8. Ne2 {[%clk 0:03:02.2]}
8... g6 {[%clk 0:02:49.8]} 9. O-O {[%clk 0:03:00.5]} 9... Bg7 {[%clk 0:02:50.8]}
10. f4 {[%clk 0:02:59.3]} 10... Qe7 {[%clk 0:02:51.7]} 11. Qb3 {[%clk
0:02:31.3]} 11... O-O {[%clk 0:02:50.9]} 12. Rae1 {[%clk 0:02:17.7]} 12... Kh8
{[%clk 0:02:36.1]} 13. Kh1 {[%clk 0:02:12.9]} 13... a5 {[%clk 0:02:29.3]} 14. a4
{[%clk 0:02:06.6]} 14... Rb8 {[%clk 0:02:17.1]} 15. Nc4 {[%clk 0:01:59.4]} 15...
b6 {[%clk 0:02:13.9]} 16. Ne3 {[%clk 0:01:56.4]} 16... c6 {[%clk 0:02:11.6]} 17.
Bc4 {[%clk 0:01:37.2]} 17... exd4 {[%clk 0:01:57.1]} 18. Nxd4 {[%clk 0:01:29.2]}
18... Nc5 {[%clk 0:01:52.4]} 19. Qc2 {[%clk 0:01:27.6]} 19... Bd7 {[%clk
0:01:42.6]} 20. e5 {[%clk 0:01:16.2]} 20... dxe5 {[%clk 0:01:41.8]} 21. fxe5
{[%clk 0:01:15.8]} 21... Bxe5 {[%clk 0:01:16]} 22. Nf3 {[%clk 0:01:16]} 22...
Bg7 {[%clk 0:01:10.9]} 23. Nf5 {[%clk 0:01:15.1]} 23... Bxf5 {[%clk 0:01:06.9]}
24. Qxf5 {[%clk 0:01:15.1]} 24... Qxe1 {[%clk 0:01:02.5]} 0-1

[Event "*** Titled Tuesday Blitz"]
[Site "Chess.com"]
[Date "2019.11.05"]
[Round "7"]
[White "TomsKantans"]
[Black "ExploringChess"]
[Result "0-1"]
[WhiteElo "2601"]
[BlackElo "2730"]
[TimeControl "180+2"]
[EndTime "14:35:31 PST"]
[Termination "ExploringChess won by resignation"]

1. e4 {[%clk 0:03:01.9]} 1... e6 {[%clk 0:03:00.4]} 2. c4 {[%clk 0:03:01.7]}
2... d5 {[%clk 0:03:02]} 3. cxd5 {[%clk 0:03:00.4]} 3... exd5 {[%clk 0:03:02.6]}
4. exd5 {[%clk 0:03:02.3]} 4... Nf6 {[%clk 0:03:01.9]} 5. Nc3 {[%clk 0:03:03.3]}
5... Nbd7 {[%clk 0:03:01.6]} 6. d4 {[%clk 0:03:01.4]} 6... Bd6 {[%clk
0:03:01.4]} 7. Nf3 {[%clk 0:03:01.3]} 7... O-O {[%clk 0:03:00.3]} 8. Bd3 {[%clk
0:03:02.5]} 8... Re8+ {[%clk 0:02:58.7]} 9. Be3 {[%clk 0:03:03.3]} 9... Nb6
{[%clk 0:02:58.6]} 10. O-O {[%clk 0:02:58.1]} 10... Nbxd5 {[%clk 0:02:59.2]} 11.
Bg5 {[%clk 0:02:57.7]} 11... Be7 {[%clk 0:02:53.6]} 12. Re1 {[%clk 0:02:53.6]}
12... Be6 {[%clk 0:02:53.1]} 13. Rc1 {[%clk 0:02:50.8]} 13... c6 {[%clk
0:02:44.5]} 14. Bb1 {[%clk 0:02:51.1]} 14... h6 {[%clk 0:02:38.9]} 15. Bh4
{[%clk 0:02:50.7]} 15... Nf4 {[%clk 0:02:37]} 16. Bg3 {[%clk 0:02:39.9]} 16...
Bd6 {[%clk 0:02:31.7]} 17. Ne5 {[%clk 0:02:39.8]} 17... N4h5 {[%clk 0:02:28.2]}
18. Bh4 {[%clk 0:02:22.1]} 18... Be7 {[%clk 0:02:29]} 19. Qd3 {[%clk 0:01:33.4]}
19... Nf4 {[%clk 0:02:28.8]} 20. Qf3 {[%clk 0:01:34.5]} 20... Qxd4 {[%clk
0:02:25.3]} 21. Rcd1 {[%clk 0:01:13.6]} 21... Qb4 {[%clk 0:02:10.6]} 22. a3
{[%clk 0:01:05]} 22... Qxb2 {[%clk 0:02:11]} 23. Na4 {[%clk 0:00:55.2]} 23...
Qxa3 {[%clk 0:02:11.8]} 24. Qxf4 {[%clk 0:00:55.1]} 24... Qb4 {[%clk 0:02:13.2]}
25. Bg3 {[%clk 0:00:09.1]} 25... Qxf4 {[%clk 0:02:04.6]} 26. Bxf4 {[%clk
0:00:11]} 26... Bb3 {[%clk 0:02:04.2]} 27. Rd4 {[%clk 0:00:12.1]} 27... c5
{[%clk 0:02:03]} 28. Rc4 {[%clk 0:00:06.3]} 28... Bxc4 {[%clk 0:01:59.1]} 0-1

[Event "*** Titled Tuesday Blitz"]
[Site "Chess.com"]
[Date "2019.11.05"]
[Round "7"]
[White "nihalsarin"]
[Black "SCIM"]
[Result "1-0"]
[WhiteElo "2976"]
[BlackElo "2492"]
[TimeControl "180+2"]
[EndTime "14:35:33 PST"]
[Termination "nihalsarin won by checkmate"]

1. Nf3 {[%clk 0:03:01.9]} 1... Nf6 {[%clk 0:02:59.4]} 2. d4 {[%clk 0:03:03.5]}
2... g6 {[%clk 0:03:00.5]} 3. c4 {[%clk 0:03:05.4]} 3... Bg7 {[%clk 0:03:01.7]}
4. Nc3 {[%clk 0:03:07.3]} 4... d5 {[%clk 0:03:02.8]} 5. cxd5 {[%clk 0:03:09.2]}
5... Nxd5 {[%clk 0:03:03.8]} 6. e4 {[%clk 0:03:11.1]} 6... Nxc3 {[%clk
0:03:04.3]} 7. bxc3 {[%clk 0:03:13]} 7... O-O {[%clk 0:03:03]} 8. Be3 {[%clk
0:03:13.5]} 8... c5 {[%clk 0:03:03.6]} 9. Be2 {[%clk 0:03:15.1]} 9... Bg4 {[%clk
0:02:55.3]} 10. O-O {[%clk 0:03:15.9]} 10... cxd4 {[%clk 0:02:51.5]} 11. cxd4
{[%clk 0:03:17.8]} 11... Nc6 {[%clk 0:02:49]} 12. d5 {[%clk 0:03:19.3]} 12...
Na5 {[%clk 0:02:41.9]} 13. Rc1 {[%clk 0:03:18]} 13... b6 {[%clk 0:02:37.3]} 14.
Nd4 {[%clk 0:03:17.1]} 14... Bxe2 {[%clk 0:02:36.8]} 15. Qxe2 {[%clk 0:03:19]}
15... Rc8 {[%clk 0:02:30.1]} 16. Rxc8 {[%clk 0:03:19.7]} 16... Qxc8 {[%clk
0:02:30.1]} 17. Rc1 {[%clk 0:03:21.6]} 17... Qd7 {[%clk 0:02:19.7]} 18. Nc6
{[%clk 0:03:13.6]} 18... e6 {[%clk 0:02:07]} 19. Nxa5 {[%clk 0:03:10]} 19...
bxa5 {[%clk 0:02:03.8]} 20. Rd1 {[%clk 0:03:11.6]} 20... exd5 {[%clk 0:02:01.5]}
21. exd5 {[%clk 0:03:13.5]} 21... Rb8 {[%clk 0:01:53.3]} 22. h3 {[%clk
0:03:11.2]} 22... a4 {[%clk 0:01:45.3]} 23. d6 {[%clk 0:03:09.4]} 23... h5
{[%clk 0:01:26]} 24. Qa6 {[%clk 0:03:10.1]} 24... Be5 {[%clk 0:01:11.7]} 25.
Qxa7 {[%clk 0:03:04.9]} 25... Qxd6 {[%clk 0:01:09.3]} 26. Qxa4 {[%clk
0:03:02.8]} 26... Qe6 {[%clk 0:01:00.7]} 27. Bf4 {[%clk 0:02:41]} 27... Bxf4
{[%clk 0:00:53.2]} 28. Qxf4 {[%clk 0:02:42.9]} 28... Ra8 {[%clk 0:00:52.4]} 29.
a4 {[%clk 0:02:43.3]} 29... Qb3 {[%clk 0:00:47.9]} 30. Rd4 {[%clk 0:02:44.3]}
30... Kg7 {[%clk 0:00:27]} 31. h4 {[%clk 0:02:45.2]} 31... Re8 {[%clk
0:00:21.6]} 32. Rd7 {[%clk 0:02:38.8]} 32... Qe6 {[%clk 0:00:18.5]} 33. Qd4+
{[%clk 0:02:37.5]} 33... Kh7 {[%clk 0:00:17.6]} 34. g3 {[%clk 0:02:37.9]} 34...
Rb8 {[%clk 0:00:16.6]} 35. a5 {[%clk 0:02:30.6]} 35... Qe1+ {[%clk 0:00:13.6]}
36. Kg2 {[%clk 0:02:31.5]} 36... Qe6 {[%clk 0:00:15.1]} 37. a6 {[%clk
0:02:30.4]} 37... Qc6+ {[%clk 0:00:15.6]} 38. Qd5 {[%clk 0:02:30.9]} 38... Qxd5+
{[%clk 0:00:15.9]} 39. Rxd5 {[%clk 0:02:32.8]} 39... Ra8 {[%clk 0:00:17]} 40.
Ra5 {[%clk 0:02:34.2]} 40... Ra7 {[%clk 0:00:18.4]} 41. Kf3 {[%clk 0:02:35.8]}
41... Kg7 {[%clk 0:00:19.9]} 42. Ke4 {[%clk 0:02:37.4]} 42... Kf6 {[%clk
0:00:21.8]} 43. Kd5 {[%clk 0:02:38.9]} 43... Kf5 {[%clk 0:00:22.5]} 44. Ra4
{[%clk 0:02:39.9]} 44... f6 {[%clk 0:00:20]} 45. Rf4# {[%clk 0:02:40.1]} 1-0

[Event "*** Titled Tuesday Blitz"]
[Site "Chess.com"]
[Date "2019.11.05"]
[Round "7"]
[White "MathiasWomacka"]
[Black "GianmarcoVaR"]
[Result "0-1"]
[WhiteElo "2315"]
[BlackElo "2530"]
[TimeControl "180+2"]
[EndTime "14:35:36 PST"]
[Termination "GianmarcoVaR won by resignation"]

1. e4 {[%clk 0:03:01.9]} 1... c5 {[%clk 0:02:59.7]} 2. Nf3 {[%clk 0:03:02.4]}
2... d6 {[%clk 0:03:00.6]} 3. d4 {[%clk 0:03:03.8]} 3... cxd4 {[%clk 0:03:01.6]}
4. Nxd4 {[%clk 0:03:05.7]} 4... Nf6 {[%clk 0:03:02.5]} 5. Nc3 {[%clk 0:03:06.8]}
5... a6 {[%clk 0:03:03.7]} 6. Be2 {[%clk 0:03:07.8]} 6... e5 {[%clk 0:03:04.7]}
7. Nb3 {[%clk 0:03:06.5]} 7... Be7 {[%clk 0:03:05.7]} 8. O-O {[%clk 0:03:07.3]}
8... O-O {[%clk 0:03:06.8]} 9. Be3 {[%clk 0:03:08.4]} 9... Be6 {[%clk
0:03:07.7]} 10. Qd3 {[%clk 0:03:09.4]} 10... Nbd7 {[%clk 0:03:08.7]} 11. Nd5
{[%clk 0:03:08.2]} 11... Bxd5 {[%clk 0:02:49.3]} 12. exd5 {[%clk 0:03:08.7]}
12... Ne8 {[%clk 0:02:47.5]} 13. Qd2 {[%clk 0:03:07.4]} 13... f5 {[%clk
0:02:46.5]} 14. f4 {[%clk 0:03:05.5]} 14... Nef6 {[%clk 0:02:46.3]} 15. Na5
{[%clk 0:02:49.9]} 15... Ne4 {[%clk 0:02:00.5]} 16. Qb4 {[%clk 0:02:48.1]} 16...
exf4 {[%clk 0:01:58.1]} 17. Bxf4 {[%clk 0:02:43.4]} 17... Rb8 {[%clk 0:01:52.7]}
18. c4 {[%clk 0:02:33.4]} 18... Bg5 {[%clk 0:01:44.1]} 19. Bd3 {[%clk
0:02:07.8]} 19... Ndc5 {[%clk 0:01:35.6]} 20. Bxe4 {[%clk 0:02:05.2]} 20... fxe4
{[%clk 0:01:35.8]} 21. Bxg5 {[%clk 0:01:47.6]} 21... Qxg5 {[%clk 0:01:36.4]} 22.
Qc3 {[%clk 0:01:44.3]} 22... Nd3 {[%clk 0:01:17.8]} 23. Qd4 {[%clk 0:01:44.9]}
23... Nf4 {[%clk 0:01:18.2]} 24. Rxf4 {[%clk 0:01:38.4]} 24... Rxf4 {[%clk
0:01:10]} 25. Re1 {[%clk 0:01:33.8]} 25... Rbf8 {[%clk 0:00:46.1]} 26. Nxb7
{[%clk 0:01:34]} 26... e3 {[%clk 0:00:47.1]} 27. Qd3 {[%clk 0:01:25.7]} 27...
Rf2 {[%clk 0:00:46.9]} 28. g3 {[%clk 0:01:18.5]} 28... Qh5 {[%clk 0:00:40.3]}
29. h4 {[%clk 0:01:17.3]} 29... Qf3 {[%clk 0:00:38.9]} 0-1

[Event "*** Titled Tuesday Blitz"]
[Site "Chess.com"]
[Date "2019.11.05"]
[Round "7"]
[White "davigator"]
[Black "enriquetejedor"]
[Result "0-1"]
[WhiteElo "2295"]
[BlackElo "2503"]
[TimeControl "180+2"]
[EndTime "14:35:39 PST"]
[Termination "enriquetejedor won by checkmate"]

1. e4 {[%clk 0:03:01.9]} 1... d6 {[%clk 0:01:05]} 2. d4 {[%clk 0:03:01]} 2... e5
{[%clk 0:01:06.4]} 3. Be3 {[%clk 0:02:57.8]} 3... exd4 {[%clk 0:01:07.7]} 4.
Bxd4 {[%clk 0:02:58.4]} 4... Nf6 {[%clk 0:01:09.1]} 5. Nc3 {[%clk 0:02:58.2]}
5... Nc6 {[%clk 0:01:10.6]} 6. Be3 {[%clk 0:02:58.3]} 6... Be7 {[%clk
0:01:12.2]} 7. f3 {[%clk 0:02:59]} 7... O-O {[%clk 0:01:14.1]} 8. Qd2 {[%clk
0:03:00.1]} 8... Be6 {[%clk 0:01:15.7]} 9. O-O-O {[%clk 0:03:00.9]} 9... b5
{[%clk 0:01:17.6]} 10. Bxb5 {[%clk 0:02:57.6]} 10... Na5 {[%clk 0:01:18.6]} 11.
Nge2 {[%clk 0:02:54.3]} 11... Rb8 {[%clk 0:01:12.4]} 12. Nf4 {[%clk 0:02:51.4]}
12... Bxa2 {[%clk 0:00:16.4]} 13. Nxa2 {[%clk 0:02:42.7]} 13... Rxb5 {[%clk
0:00:14.7]} 14. Nc3 {[%clk 0:02:37]} 14... Nc4 {[%clk 0:00:07.8]} 15. Qe2 {[%clk
0:02:36.4]} 15... Nxe3 {[%clk 0:00:03.9]} 16. Qxe3 {[%clk 0:02:28.5]} 16... Ra5
{[%clk 0:00:03.5]} 17. Rhe1 {[%clk 0:02:25.9]} 17... Ra1+ {[%clk 0:00:03]} 18.
Kd2 {[%clk 0:02:26.2]} 18... Rxd1+ {[%clk 0:00:04.9]} 19. Rxd1 {[%clk
0:02:26.8]} 19... Nd7 {[%clk 0:00:06.8]} 20. Nfd5 {[%clk 0:02:26.6]} 20... Bg5
{[%clk 0:00:06.6]} 21. f4 {[%clk 0:02:27.4]} 21... Bh6 {[%clk 0:00:08.3]} 22.
Qxa7 {[%clk 0:02:26.3]} 22... c6 {[%clk 0:00:08.1]} 23. Ne3 {[%clk 0:02:19.8]}
23... Bxf4 {[%clk 0:00:05.5]} 24. Ke2 {[%clk 0:02:20.7]} 24... Ne5 {[%clk
0:00:03.1]} 25. g3 {[%clk 0:02:18.3]} 25... Bxe3 {[%clk 0:00:03.9]} 26. Kxe3
{[%clk 0:02:17.9]} 26... f5 {[%clk 0:00:04.7]} 27. b3 {[%clk 0:02:17.3]} 27...
Qg5+ {[%clk 0:00:04.3]} 28. Ke2 {[%clk 0:02:11.6]} 28... f4 {[%clk 0:00:03.6]}
29. Rxd6 {[%clk 0:02:06.7]} 29... fxg3 {[%clk 0:00:04.2]} 30. hxg3 {[%clk
0:02:07.1]} 30... Qxg3 {[%clk 0:00:03.8]} 31. Qd4 {[%clk 0:02:00.6]} 31... Qg2+
{[%clk 0:00:04.2]} 32. Kd1 {[%clk 0:01:54.4]} 32... Rf1# {[%clk 0:00:04.5]} 0-1

[Event "*** Titled Tuesday Blitz"]
[Site "Chess.com"]
[Date "2019.11.05"]
[Round "7"]
[White "TST2014"]
[Black "deBaller"]
[Result "1-0"]
[WhiteElo "2532"]
[BlackElo "2347"]
[TimeControl "180+2"]
[EndTime "14:35:41 PST"]
[Termination "TST2014 won by resignation"]

1. d4 {[%clk 0:03:01.3]} 1... Nf6 {[%clk 0:03:00.4]} 2. c4 {[%clk 0:03:01.7]}
2... e6 {[%clk 0:03:00.4]} 3. Nf3 {[%clk 0:03:02.2]} 3... Bb4+ {[%clk
0:03:01.2]} 4. Bd2 {[%clk 0:03:00.9]} 4... a5 {[%clk 0:03:01.8]} 5. g3 {[%clk
0:02:58.9]} 5... d6 {[%clk 0:03:01.4]} 6. Bg2 {[%clk 0:02:59.7]} 6... Nc6 {[%clk
0:03:01.4]} 7. O-O {[%clk 0:02:59.2]} 7... Bxd2 {[%clk 0:03:02.3]} 8. Qxd2
{[%clk 0:02:59]} 8... O-O {[%clk 0:03:04.2]} 9. Nc3 {[%clk 0:02:59.8]} 9... e5
{[%clk 0:03:04.7]} 10. d5 {[%clk 0:02:59.7]} 10... Ne7 {[%clk 0:03:05.6]} 11. e4
{[%clk 0:02:58.7]} 11... Nd7 {[%clk 0:03:03.9]} 12. b3 {[%clk 0:02:47.5]} 12...
Nc5 {[%clk 0:03:03.8]} 13. Rab1 {[%clk 0:02:37.9]} 13... f5 {[%clk 0:03:02.3]}
14. exf5 {[%clk 0:02:31.3]} 14... Bxf5 {[%clk 0:03:01.4]} 15. Rbe1 {[%clk
0:02:30.3]} 15... Bd3 {[%clk 0:02:50.5]} 16. Ne2 {[%clk 0:02:28.4]} 16... Nf5
{[%clk 0:02:38.4]} 17. Ng5 {[%clk 0:02:20.4]} 17... Nd4 {[%clk 0:02:19.6]} 18.
Nxd4 {[%clk 0:02:18.6]} 18... exd4 {[%clk 0:02:20.2]} 19. Ne6 {[%clk 0:02:16.9]}
19... Nxe6 {[%clk 0:02:13.3]} 20. dxe6 {[%clk 0:02:17.7]} 20... Bxf1 {[%clk
0:02:09.2]} 21. e7 {[%clk 0:02:18.4]} 21... Qd7 {[%clk 0:02:08.2]} 22. Bd5+
{[%clk 0:02:08.3]} 22... Kh8 {[%clk 0:02:06.8]} 23. exf8=Q+ {[%clk 0:02:05.8]}
23... Rxf8 {[%clk 0:02:06.8]} 24. Kxf1 {[%clk 0:01:56.5]} 24... c6 {[%clk
0:02:03.7]} 25. Be6 {[%clk 0:01:56.3]} 25... Qe7 {[%clk 0:01:57.2]} 26. Qxd4
{[%clk 0:01:55.2]} 26... Re8 {[%clk 0:01:54.7]} 27. Re3 {[%clk 0:01:53.7]} 27...
a4 {[%clk 0:01:50.2]} 28. bxa4 {[%clk 0:01:43.9]} 28... Ra8 {[%clk 0:01:46.1]}
29. Qf4 {[%clk 0:01:38.9]} 29... Rf8 {[%clk 0:01:31.7]} 30. Bf5 {[%clk
0:01:03.1]} 30... Qf6 {[%clk 0:01:26.4]} 31. Re6 {[%clk 0:01:03.6]} 31... Qa1+
{[%clk 0:01:26.4]} 32. Kg2 {[%clk 0:01:04.6]} 32... g6 {[%clk 0:01:27.1]} 33.
Rxg6 {[%clk 0:00:58]} 33... hxg6 {[%clk 0:01:26.4]} 34. Qh6+ {[%clk 0:00:58.6]}
34... Kg8 {[%clk 0:01:27.1]} 35. Be6+ {[%clk 0:00:59.8]} 35... Rf7 {[%clk
0:01:27.2]} 36. Qxg6+ {[%clk 0:01:01.1]} 36... Qg7 {[%clk 0:01:27.7]} 37. Bxf7+
{[%clk 0:01:02.3]} 1-0

[Event "*** Titled Tuesday Blitz"]
[Site "Chess.com"]
[Date "2019.11.05"]
[Round "7"]
[White "WeAintSurePal"]
[Black "bubacik"]
[Result "0-1"]
[WhiteElo "2474"]
[BlackElo "2679"]
[TimeControl "180+2"]
[EndTime "14:35:44 PST"]
[Termination "bubacik won by resignation"]

1. e4 {[%clk 0:02:55.2]} 1... e5 {[%clk 0:03:00.7]} 2. Nf3 {[%clk 0:02:52.4]}
2... Nc6 {[%clk 0:03:02.3]} 3. Bc4 {[%clk 0:02:53.4]} 3... Nf6 {[%clk
0:03:03.1]} 4. d3 {[%clk 0:02:53.5]} 4... h6 {[%clk 0:03:03.3]} 5. O-O {[%clk
0:02:53.3]} 5... d6 {[%clk 0:03:05]} 6. c3 {[%clk 0:02:52.8]} 6... g5 {[%clk
0:03:06.6]} 7. Re1 {[%clk 0:02:48.4]} 7... g4 {[%clk 0:03:07.8]} 8. Nfd2 {[%clk
0:02:46.3]} 8... h5 {[%clk 0:03:09.3]} 9. Nf1 {[%clk 0:02:47.7]} 9... h4 {[%clk
0:03:10.9]} 10. d4 {[%clk 0:02:48.6]} 10... Bg7 {[%clk 0:03:09.3]} 11. Na3
{[%clk 0:02:29.6]} 11... Qe7 {[%clk 0:03:09.6]} 12. Bg5 {[%clk 0:02:25.5]} 12...
Rh5 {[%clk 0:03:10.2]} 13. Be3 {[%clk 0:02:12.5]} 13... Nxe4 {[%clk 0:02:59.1]}
14. d5 {[%clk 0:02:06.6]} 14... Nd8 {[%clk 0:02:57.9]} 15. Bb5+ {[%clk
0:02:06.1]} 15... c6 {[%clk 0:02:52.5]} 16. dxc6 {[%clk 0:02:00.3]} 16... bxc6
{[%clk 0:02:54.4]} 17. Qa4 {[%clk 0:02:00.6]} 17... cxb5 {[%clk 0:02:13.2]} 18.
Qxe4 {[%clk 0:01:44.2]} 18... Rb8 {[%clk 0:02:14.7]} 19. Rad1 {[%clk 0:01:39.3]}
19... Be6 {[%clk 0:01:56.1]} 20. Qb4 {[%clk 0:01:32.8]} 20... d5 {[%clk
0:01:44.4]} 21. Bc5 {[%clk 0:01:14.5]} 21... a5 {[%clk 0:01:45.9]} 22. Bxe7
{[%clk 0:01:11]} 22... axb4 {[%clk 0:01:47.2]} 23. Bxb4 {[%clk 0:01:11.5]} 23...
Nc6 {[%clk 0:01:48.2]} 24. Ne3 {[%clk 0:01:10.4]} 24... Nxb4 {[%clk 0:01:29.7]}
25. cxb4 {[%clk 0:01:12.3]} 25... d4 {[%clk 0:01:21.3]} 26. Nf1 {[%clk
0:01:12.7]} 26... Bf8 {[%clk 0:01:08]} 27. Nc2 {[%clk 0:01:05.4]} 27... Rc8
{[%clk 0:01:09.5]} 28. Rc1 {[%clk 0:01:04.7]} 28... Bh6 {[%clk 0:01:08.5]} 29.
g3 {[%clk 0:00:50.4]} 29... Bxc1 {[%clk 0:01:07.1]} 0-1

[Event "*** Titled Tuesday Blitz"]
[Site "Chess.com"]
[Date "2019.11.05"]
[Round "7"]
[White "Walter_White_Poland"]
[Black "marianokar"]
[Result "0-1"]
[WhiteElo "2312"]
[BlackElo "2476"]
[TimeControl "180+2"]
[EndTime "14:35:57 PST"]
[Termination "marianokar won on time"]

1. e4 {[%clk 0:03:01.9]} 1... c5 {[%clk 0:02:55.7]} 2. Nf3 {[%clk 0:03:02.1]}
2... d6 {[%clk 0:02:56.2]} 3. d4 {[%clk 0:03:03.1]} 3... cxd4 {[%clk 0:02:58.1]}
4. Nxd4 {[%clk 0:03:04.4]} 4... Nf6 {[%clk 0:02:59.2]} 5. Nc3 {[%clk 0:03:05.6]}
5... Nc6 {[%clk 0:02:59.4]} 6. Bg5 {[%clk 0:03:06.1]} 6... e6 {[%clk 0:02:59.9]}
7. Qd2 {[%clk 0:03:06.8]} 7... a6 {[%clk 0:03:01.4]} 8. O-O-O {[%clk 0:03:07]}
8... Bd7 {[%clk 0:02:59.8]} 9. f4 {[%clk 0:03:07.2]} 9... h6 {[%clk 0:03:00.4]}
10. Bh4 {[%clk 0:02:52.7]} 10... g5 {[%clk 0:02:59.3]} 11. fxg5 {[%clk
0:02:46.4]} 11... Ng4 {[%clk 0:03:00.3]} 12. Nf3 {[%clk 0:02:38]} 12... Be7
{[%clk 0:03:01.1]} 13. Kb1 {[%clk 0:01:33.5]} 13... Nge5 {[%clk 0:02:58.5]} 14.
Rg1 {[%clk 0:01:17]} 14... b5 {[%clk 0:02:51.8]} 15. a3 {[%clk 0:01:07.3]} 15...
Rb8 {[%clk 0:02:47.4]} 16. Ne2 {[%clk 0:00:39.1]} 16... hxg5 {[%clk 0:02:20.7]}
17. Bxg5 {[%clk 0:00:37.4]} 17... Bxg5 {[%clk 0:02:21.6]} 18. Qxg5 {[%clk
0:00:26.7]} 18... Qxg5 {[%clk 0:02:21.1]} 19. Nxg5 {[%clk 0:00:27.9]} 19... Rxh2
{[%clk 0:02:13.7]} 20. Rxd6 {[%clk 0:00:27.1]} 20... Ke7 {[%clk 0:02:14.4]} 21.
Rd1 {[%clk 0:00:26.8]} 21... Rg8 {[%clk 0:02:15.5]} 22. Nf3 {[%clk 0:00:19.9]}
22... Rh7 {[%clk 0:01:56.3]} 23. Ned4 {[%clk 0:00:17.1]} 23... Nxf3 {[%clk
0:01:44.2]} 24. Nxf3 {[%clk 0:00:17]} 24... e5 {[%clk 0:01:45.4]} 25. a4 {[%clk
0:00:15.2]} 25... bxa4 {[%clk 0:01:42]} 26. Bxa6 {[%clk 0:00:16.1]} 26... Rhg7
{[%clk 0:01:43.3]} 27. Bc4 {[%clk 0:00:13.6]} 27... Rxg2 {[%clk 0:01:37.7]} 28.
Rxg2 {[%clk 0:00:14.6]} 28... Rxg2 {[%clk 0:01:39.1]} 29. Bxf7 {[%clk
0:00:07.7]} 29... Bg4 {[%clk 0:01:40.4]} 30. Rf1 {[%clk 0:00:05.3]} 30... Bxf3
{[%clk 0:01:35.2]} 31. Rxf3 {[%clk 0:00:05.7]} 31... Nd4 {[%clk 0:01:36.8]} 0-1